Cogmind - Beta 16.1 @@@ ROGUE MODE // 2026.03.21 @ 21:29:18 Player: Ez Result: Destroyed by G-34 Mercenary with Small Laser Performance ------------- Evolutions (1) 500 Regions Visited (2) 400 Robots Destroyed (26) 130 Value Destroyed (809) 809 Prototype IDs (0) 0 Alien Tech Used (0) 0 Bonus (0) 0 TOTAL SCORE: 1839 Bonus ------- None Cogmind --------- Core Integrity 0/400 Matter 294/300 Energy 100/100 System Corruption 9% Temperature Cool (6) Movement Core (50) Location -9/Materials Parts ------- > --- POWER (1) -------- (None) > --- PROPULSION (3) --- (None) > --- UTILITY (3) ------ (None) > --- WEAPON (2) ------- (None) > --- INVENTORY (5) ---- Structural Scanner Grenade Launcher Hammer Peak State ------------ > --- POWER ------------ Improved Ion Engine > --- PROPULSION ------- Light Treads Light Treads Light Treads > --- UTILITY ---------- High-capacity Storage Unit Light Armor Plating > --- WEAPON ----------- Assault Rifle Assault Rifle > --- INVENTORY -------- Ion Engine Light Treads Light Treads Structural Scanner Grenade Launcher Hammer Hammer [Rating: 9] Favorites ----------- Power Ion Engine Engine Ion Engine Propulsion Light Treads Treads Light Treads Utility High-capacity Storage Unit Storage High-capacity Storage Unit Protection Hardened Light Armor Plating Weapon Assault Rifle Ballistic Gun Assault Rifle Launcher Grenade Launcher Impact Weapon Hammer Build | -11 -10 -9 ------- Run | Yrd Mat Mat Slots Evolved 2 | . . 2 Power . | . . . Propulsion 1 | . . 1 Utility 1 | . . 1 Weapon . | . . . Parts Attached 19 | 6 5 8 Power 3 | 1 . 2 Engine 3 | 1 . 2 Core . | . . . Reactor . | . . . Propulsion 7 | 2 1 4 Treads 7 | 2 1 4 Leg . | . . . Wheel . | . . . Hover . | . . . Flight . | . . . Utility 4 | 1 1 2 Device . | . . . Storage 2 | 1 1 . Processor . | . . . Hackware . | . . . Protection 2 | . . 2 Artifact . | . . . Weapon 5 | 2 3 . Energy Gun . | . . . Energy Cannon . | . . . Ballistic Gun 2 | 2 . . Ballistic Cannon . | . . . Launcher 1 | . 1 . Special Weapon . | . . . Impact Weapon 2 | . 2 . Slashing Weapon . | . . . Piercing Weapon . | . . . Special Melee Weapon . | . . . Unidentified Prototypes . | . . . Parts Lost 10 | . 1 9 Power 3 | . . 3 Propulsion 5 | . 1 4 Utility 1 | . . 1 Weapon 1 | . . 1 Highest Loss Streak 4 | . 1 4 To Critical Strikes . | . . . Average Backups 4 | . 3 4 Power . | . . . Propulsion . | . . . Utility . | . . 1 Weapon 2 | . 2 2 Tool/Special . | . . . Unused Backups 2 | . . 2 Power . | . . . Propulsion 1 | . . 1 Utility 1 | . . 1 Weapon . | . . . Tool/Special . | . . . Average Slot Usage (%) 75 | . 84 62 Engine 12 | . 14 10 Treads 25 | . 28 22 Storage 12 | . 14 10 Protection 1 | . . 3 Ballistic Gun 18 | . 25 7 Impact Weapon 4 | . 2 8 Peak Build Rating 9 | 6 7 9 Average Rating 5 | 3 5 6 On Entrance 4 | . 6 6 Avg Prop Armor Cover (%) . | . . . Naked Turns 14 | . . 14 Heaviest Build 54 | 14 49 54 Greatest Support 60 | 40 40 60 Greatest Overweight (x) 2 | . 1 2 Average Overweight (x) . | . . . Largest Inventory Capacity 20 | 8 20 20 Average Capacity 19 | 6 19 19 Most Carried 9 | . 9 9 Average Carried 4 | . 3 4 Final Capacity 20 | 8 20 5 Final Carried 7 | . 7 3 Class Distribution -------------------- 100% | Mutant Dominant Class ---------------- Mutant | -10/Materials Mutant | -9/Materials Resources | -11 -10 -9 ----------- Run | Yrd Mat Mat Matter Collected 828 | 178 354 296 Remotely . | . . . Salvage Created 978 | . 500 478 Parts 46 | . 26 20 Haulers Intercepted 1 | . 1 . Recyclers Shooed . | . . . Parts Field Recycled . | . . . Retrieved Matter . | . . . Parts Self-Destructed . | . . . Prevented . | . . . Parts Restored . | . . . Kills | -11 -10 -9 ------- Run | Yrd Mat Mat Combat Hostiles Destroyed 20 | . 10 10 Melee 1 | . 1 . Guns 10 | . 6 4 Classes Destroyed 8 | . 6 2 Builder 1 | . 1 . Hauler 1 | . 1 . Operator 2 | . 1 1 Watcher 2 | . 1 1 Swarmer 1 | . 1 . Grunt 15 | . 9 6 Duelist 1 | . . 1 Sentry 3 | . . 3 Best Kill Streak 3 | . 3 2 Combat Bots Only 2 | . 2 2 Max Kills in Single Turn 1 | . 1 1 Gunslinging . | . . . Exploded . | . . . Melee 1 | . 1 . Uniques/NPCs Destroyed . | . . . Combat | -11 -10 -9 -------- Run | Yrd Mat Mat Hostile Shots Fired 219 | . 77 142 Missed 64 | . 29 35 Hits 155 | . 48 107 Melee 4 | . . 4 Projectile 151 | . 48 103 Critical Strikes 2 | . . 2 Damage Taken 2438 | . 680 1758 Core 496 | . 89 407 Absorbed by Shields . | . . . Regen/Repaired (Parts) 215 | . 81 134 Core Remaining (%) 82 | 100 64 . Volleys Fired 60 | . 39 21 Largest 2 | . 2 2 Hottest 40 | . 40 40 Shots Fired 107 | . 76 31 Gun 107 | . 76 31 Cannon . | . . . Launcher . | . . . Special . | . . . Kinetic 107 | . 76 31 Thermal . | . . . Explosive . | . . . Electromagnetic . | . . . Robot Hit Streak 8 | . 6 8 Robot Miss Streak 4 | . 4 2 Penetration Max . | . . . Secondary Targets 1 | . 1 . Max Gunslinging Chain 1 | . 1 . Shots Hit Robots 105 | . 59 46 Core Hits 31 | . 21 10 Critical Kills . | . . . Critical Parts Destroyed 11 | . 3 8 Critical Strikes 11 | . 3 8 Smash 11 | . 3 8 Melee Attacks 66 | . 29 37 Impact 66 | . 29 37 Slashing . | . . . Piercing . | . . . Sneak Attacks 2 | . . 2 Combat Hostiles . | . . . Follow-up Attacks . | . . . Damage Inflicted 1753 | . 885 868 Guns 879 | . 585 294 Cannons . | . . . Explosions . | . . . Melee 874 | . 300 574 Ramming . | . . . Kinetic 879 | . 585 294 Thermal . | . . . Explosive . | . . . Electromagnetic . | . . . Impact 874 | . 300 574 Slashing . | . . . Piercing . | . . . Highest Corruption 9 | . 1 9 Average Corruption 6 | . 1 8 Corruption Purged . | . . . Corruption Blocked . | . . . Effects 21 | . . 21 Message Errors 6 | . . 6 Matter Fused 3 | . . 3 Heat Flow Errors 4 | . . 4 Energy Discharges 1 | . . 1 Data Loss (minor) 3 | . . 3 Data Loss (major) 4 | . . 4 Overload Shots . | . . . Overflow Damage 310 | . 86 224 Projectiles . | . . . Explosions . | . . . Melee 310 | . 86 224 Knockbacks 10 | . 3 7 Impact 10 | . 3 7 Kinetic . | . . . Secondary . | . . . Self-Inflicted Damage . | . . . Shots . | . . . Rammed . | . . . Targets Rammed . | . . . Kicked . | . . . Crushed . | . . . Highest Temperature 246 | . 6 246 Average Temperature 79 | . 2 89 Received Heat Transfer 648 | . 276 372 Effects 1 | . . 1 Interference 1 | . . 1 Siege Activations . | . . . Martial Activations . | . . . Shielding Activations . | . . . Robots Disrupted . | . . . Combat Hostiles . | . . . Robots Corrupted 10 | . 3 7 Combat Hostiles 9 | . 3 6 Parts Fried 10 | . 3 7 Impact Corruptions 17 | . 4 13 Robots Melted . | . . . Combat Hostiles . | . . . Parts Melted . | . . . Heat Transferred . | . . . Parts Sabotaged . | . . . Parts Stolen . | . . . Parts Stripped . | . . . Power Chain Reactions . | . . . Alert | -11 -10 -9 ------- Run | Yrd Mat Mat Maximum Alert Level . | . . . Low Security (%) 100 | 100 100 100 Level 1 . | . . . Level 2 . | . . . Level 3 . | . . . Level 4 . | . . . Level 5 . | . . . High Security . | . . . Max Security . | . . . Peak Influence 102 | . 102 59 Initial 17 | . . 17 Average 18 | . 22 14 Influence Increases 618 | . 314 304 Destroy 0b10 Robot/C 400 | . 200 200 Destroy 0b10 Robot/NC 30 | . 20 10 Destroy Leader 106 | . 44 62 Successful Hack 10 | . . 10 Disable Machine 15 | . 15 . Destroy Structure 12 | . 5 7 Lose Combat Pursuer 45 | . 30 15 Influence Decreases 606 | . 272 334 Entered New Map 25 | . . 25 Time Decay 549 | . 262 287 Lost Part 32 | . 10 22 Squads Dispatched 6 | . 2 4 Investigation 3 | . 1 2 Extermination . | . . . Reinforcement 3 | . 1 2 Assault . | . . . Garrison . | . . . Intercept . | . . . Searches Triggered . | . . . Construction Impeded . | . . . Haulers Reinforced . | . . . Active Scanning Responses . | . . . Cargo Convoy Interrupts . | . . . Stealth | -11 -10 -9 --------- Run | Yrd Mat Mat Distress Signals 2 | . 1 1 Communications Jammed . | . . . Distress Signals . | . . . Times Spotted 49 | . 23 26 Peak Tracking Total 4 | . 3 4 Tactical Retreats 2 | . 1 1 Traps | -11 -10 -9 ------- Run | Yrd Mat Mat Traps Triggered 1 | . . 1 Indirectly . | . . . Trap Hack Attempts . | . . . Triggered . | . . . Disarmed . | . . . Reprogrammed . | . . . Reused . | . . . Traps Extracted . | . . . Installed . | . . . Triggered . | . . . Machines | -11 -10 -9 ---------- Run | Yrd Mat Mat Machines Disabled 1 | . 1 . Max in Single Turn 1 | . 1 . Machines Repaired . | . . . Machines Dismantled . | . . . Machines Sabotaged . | . . . Overloaded Fab Kills . | . . . Hacking | -11 -10 -9 --------- Run | Yrd Mat Mat Machines Accessed 6 | . 2 4 Terminals 4 | . 1 3 Fabricators . | . . . Repair Stations 2 | . 1 1 Recycling Units . | . . . Scanalyzers . | . . . Garrison Access . | . . . Total Hacks 17 | . 5 12 Successful 12 | . 4 8 Failed 5 | . 1 4 Catastrophic 1 | . . 1 Database Lockouts . | . . . Manual 13 | . 2 11 Terminals 13 | . 3 10 Fabricators . | . . . Repair Stations 4 | . 2 2 Recycling Units . | . . . Scanalyzers . | . . . Garrison Access . | . . . Terminal Hacks 5 | . 1 4 Robot Analysis 2 | . . 2 Recall Investigation 1 | . . 1 Recall Reinforcements 1 | . . 1 Hauler Manifests 1 | . 1 . Fabricator Hacks . | . . . Repair Station Hacks 4 | . 2 2 Scan Component 2 | . 1 1 Repair 2 | . 1 1 Recycling Unit Hacks . | . . . Scanalyzer . | . . . Garrison Access Hacks . | . . . Unauthorized Hacks 3 | . 1 2 Terminals 3 | . 1 2 Assimilate 2 | . 1 1 Botnet 1 | . . 1 Fabricators . | . . . Repair Stations . | . . . Recycling Units . | . . . Scanalyzers . | . . . Garrison Access . | . . . Data Cores Recovered . | . . . Used . | . . . Hacking Detections 4 | . 1 3 Full Trace Events 2 | . 1 1 Feedback Events . | . . . Feedback Blocked . | . . . Robot Schematics Acquired . | . . . Robots Built . | . . . Authchips . | . . . Time . | . . . Total Robot Build Rating . | . . . Part Schematics Acquired . | . . . Parts Built . | . . . Authchips . | . . . Time . | . . . Total Part Build Rating . | . . . Part Studies Acquired . | . . . Parts Repaired 2 | . 1 1 Time 52 | . 26 26 Parts Recycled . | . . . Recycled Matter . | . . . Retrieved Matter . | . . . Retrieved Components . | . . . Parts Scanalyzed . | . . . Part Schematics Acquired . | . . . Parts Damaged . | . . . Bothacking | -11 -10 -9 ------------ Run | Yrd Mat Mat Used RIF Installer . | . . . Robots Hacked . | . . . Non-combat . | . . . Combat . | . . . Robot Hacks Applied . | . . . Relay Couplers Released . | . . . Fabnet Peak Effective % . | . . . Robots Rewired . | . . . Allies Hacked . | . . . Hacks Repelled . | . . . Allies | -11 -10 -9 -------- Run | Yrd Mat Mat Total Allies . | . . . Largest Group . | . . . Highest-Rated Group . | . . . Highest-Rated Ally . | . . . Total Orders . | . . . Ally Attacks . | . . . Total Damage . | . . . Kills . | . . . Allies Corrupted . | . . . Allies Melted . | . . . Intel | -11 -10 -9 ------- Run | Yrd Mat Mat Active Infowar (turns) . | . . . Robot Analysis Total 2 | . . 2 Derelict Logs Recovered . | . . . Drone Launches . | . . . Drone Recoveries . | . . . Exploration | -11 -10 -9 ------------- Run | Yrd Mat Mat Turns Passed 3473 | 80 2044 1349 Spaces Moved 1226 | 47 720 459 Core 3 | 3 . . Treads 1223 | 44 720 459 Legs . | . . . Wheels . | . . . Hover . | . . . Flight . | . . . Fastest Speed 50 | 50 160 160 Average Speed 231 | 152 238 228 Slowest Speed 320 | 160 240 320 Overloaded Moves . | . . . Propulsion Burnouts . | . . . Robots Hopped . | . . . Potential Cave-ins . | . . . Cave-ins Triggered 3 | . 1 2 Exploration Rate (%) 31 | 3 59 31 Regions Visited 2 Branch Regions . Pre-discovered Areas . | . . . Known Exits Taken . | . . . Unknown Exits Taken 2 | 1 1 . Scrap Searched . | . . . Spaces Dug 13 | . 5 8 Terrain Destroyed 13 | . 5 8 Melee 13 | . 5 8 Projectile . | . . . AOE . | . . . Terrain Rammed . | . . . Walls Destroyed . | . . . Machines Disabled . | . . . Actions | -11 -10 -9 --------- Run | Yrd Mat Mat Total 1646 | 52 929 665 Wait 235 | . 112 123 Move 1224 | 46 719 459 Hop . | . . . Pick Up 12 | . 9 3 Fast Attach 12 | 6 1 5 Attach 20 | . 10 10 Detach 14 | . 9 5 Swap . | . . . Drop 3 | . 1 2 Fire 60 | . 39 21 Melee 66 | . 29 37 Ram . | . . . Kick . | . . . Crush . | . . . Escape Stasis . | . . . Rewire . | . . . Trap . | . . . Miscellaneous . | . . . Route ------- -11/Scrapyard -10/Materials (discovered 4 exits: *Mat x2 / [*Min] / [*Sub]) -9/Materials (discovered 1 exit: [*Mat]) History --------- Turn | Location | Event 11 | -11/Scrapyard | Discovered new exit (range 13) 81 | -11/Scrapyard | Entered Materials 324 | -10/Materials | Build established: Mutant 404 | -10/Materials | Discovered new exit (range 11) 596 | -10/Materials | Discovered new exit (range 16) 938 | -10/Materials | Discovered new exit (range 8) 1498 | -10/Materials | Discovered new exit (range 11) 1632 | -10/Materials | Repaired Assault Rifle 1851 | -10/Materials | Crushed by falling debris 2125 | -10/Materials | Entered another Materials area 2125 | -9/Materials | Evolved 2 slots: Propulsion x1, Utility x1 2489 | -9/Materials | Discovered new exit (range 16) 2779 | -9/Materials | Crushed by falling debris 2785 | -9/Materials | Crushed by falling debris 2816 | -9/Materials | Lost 4 parts (1p2n1w) 3117 | -9/Materials | Repaired Lgt. Treads 3459 | -9/Materials | Core integrity fell below 50% 3460 | -9/Materials | Released all parts (4) 3469 | -9/Materials | Core integrity fell below 20% 3474 | -9/Materials | Destroyed by G-34 Mercenary with Small Laser Last Messages --------------- Aluminum Leg fried. Acquired 24 matter. IPLFOXH Y>ET:ZA=NJF/ZS WCL&,PUHQU/3BHB8 System corrupted: Heat flow error (+154). F62OUQ Sneak attack on A-02 Transporter. W-16 Scout destroyed. System corrupted: Heat flow error (+136). R-06 Scavenger collects Hover Unit. 420/QGZE MSE5|B